bitfinex/quotes_BTCUSD_20250623
["timestamp","ask_amount","ask_price","bid_price","bid_amount"]
[1750639857840,5.50884488,101510.0,101500.0,0.00013861]
[1750639858052,5.68633544,101510.0,101500.0,0.00013861]
[1750639858269,6.01648488,101510.0,101500.0,0.00013861]
[1750639858501,6.01648497,101510.0,101500.0,0.00013861]
[1750639858734,6.02633563,101510.0,101500.0,0.00013861]
[1750639858960,6.04603762,101510.0,101500.0,0.00013861]
[1750639859183,6.03618648,101510.0,101500.0,0.00013861]
[1750639859409,6.01648488,101510.0,101500.0,0.00013861]
[1750639859830,6.00663451,101510.0,101500.0,0.00013861]
[1750639860084,5.78723451,101510.0,101500.0,0.00013861]
[1750639860322,5.78607451,101510.0,101500.0,0.00013861]
[1750639860569,5.056465,101520.0,101510.0,0.0643]
[1750639860780,0.52790158,101520.0,101510.0,0.06553]
[1750639861001,0.1676,101520.0,101510.0,0.06553]
[1750639861216,0.03941943,101540.0,101520.0,0.0662]
[1750639861442,0.39972101,101540.0,101530.0,0.06743]
[1750639861663,0.16764,101540.0,101530.0,0.06743]
[1750639862102,0.41206158,101550.0,101520.0,0.00435772]
[1750639862103,0.36030158,101550.0,101520.0,0.00435772]
[1750639862342,0.26006921,101550.0,101540.0,0.00123]
[1750639862600,0.59718158,101560.0,101540.0,0.00558772]
[1750639862601,0.23688,101560.0,101540.0,0.00558772]
[1750639862824,0.38981878,101570.0,101560.0,0.0628]
[1750639863039,0.22855471,101570.0,101560.0,0.06403]
[1750639863263,0.05176,101570.0,101560.0,0.06403]
[1750639863479,0.36030158,101580.0,101570.0,0.03233]
[1750639863705,0.53709762,101580.0,101570.0,0.03233]
[1750639863970,0.57625106,101580.0,101570.0,0.03033]
[1750639864194,0.91629106,101580.0,101570.0,0.03033]
[1750639864413,0.57629106,101580.0,101570.0,0.03033]
[1750639865086,0.94558998,101580.0,101570.0,0.0291]
[1750639865308,0.34,101550.0,101540.0,0.00123]
[1750639865734,0.70030158,101550.0,101540.0,0.00123]
[1750639866429,0.70030158,101550.0,101540.0,0.03213]
[1750639866641,0.70030158,101550.0,101540.0,0.0309]
[1750639866867,0.70030158,101550.0,101540.0,0.008]
[1750639867086,0.70030158,101550.0,101530.0,0.06273]
[1750639867308,0.86778158,101540.0,101530.0,0.06273]
[1750639867991,0.86894158,101540.0,101520.0,0.0615]
[1750639868213,5.80804658,101530.0,101520.0,0.0615]
[1750639868436,5.81493768,101530.0,101500.0,0.00435772]
[1750639868656,0.70030158,101510.0,101500.0,0.06859633]
[1750639868876,0.70030158,101510.0,101500.0,0.06423861]
[1750639869336,0.34,101510.0,101500.0,0.06423861]
[1750639869559,0.70719548,101510.0,101500.0,0.06423861]
[1750639870033,0.34,101510.0,101500.0,0.06982633]
[1750639870682,0.34,101510.0,101500.0,0.07682633]
[1750639872943,0.70030158,101510.0,101500.0,0.07123861]
[1750639873123,0.70030158,101510.0,101500.0,0.07559633]
[1750639873374,0.34,101510.0,101500.0,0.07559633]
[1750639873596,0.34,101510.0,101500.0,0.07681633]
[1750639874476,0.70030158,101510.0,101500.0,0.07681633]
[1750639878136,0.70030158,101510.0,101500.0,0.07559633]
[1750639879312,5.78631856,101510.0,101500.0,0.00713861]
[1750639879532,0.70719326,101510.0,101500.0,0.00713861]
[1750639879761,0.00689022,101510.0,101500.0,0.06995861]
[1750639879970,0.55856,101510.0,101500.0,0.06995861]
[1750639880188,0.39132,101510.0,101500.0,0.06995861]
[1750639880397,0.39132,101510.0,101500.0,0.06295861]
[1750639880398,0.05132,101510.0,101500.0,0.06295861]
[1750639880605,0.05132,101520.0,101500.0,0.06295861]
[1750639880820,0.36030158,101510.0,101500.0,0.03685861]
[1750639881259,0.36030158,101510.0,101500.0,0.06695861]
[1750639881937,0.52750158,101510.0,101500.0,0.06695861]
[1750639882366,0.52750158,101510.0,101500.0,0.06295861]
[1750639882795,0.52750158,101510.0,101500.0,0.06495861]
[1750639883003,0.52750158,101510.0,101500.0,0.06295861]
[1750639883232,0.36030158,101510.0,101500.0,0.06695861]
[1750639884314,5.556465,101530.0,101520.0,0.0616]
[1750639884532,0.36030158,101530.0,101520.0,0.06282]
[1750639884749,0.70030158,101530.0,101520.0,0.0616]
[1750639885624,0.34,101530.0,101520.0,0.0616]
[1750639885827,0.70030158,101530.0,101520.0,0.0616]
[1750639887178,0.70030158,101530.0,101520.0,0.06282]
[1750639891248,0.34,101530.0,101520.0,0.11282]
[1750639892106,0.39132,101540.0,101530.0,0.11282]
[1750639893357,0.75162158,101540.0,101530.0,0.11682]
[1750639893602,0.75162158,101540.0,101530.0,0.06682]
[1750639893822,6.17945562,101540.0,101530.0,0.004]
[1750639894044,6.18930327,101540.0,101530.0,0.004]
[1750639894277,5.85434145,101540.0,101530.0,0.004]
[1750639894487,5.8641892,101540.0,101530.0,0.004]
[1750639894794,5.8641891,101540.0,101530.0,0.004]
[1750639895843,5.83464644,101540.0,101530.0,0.004]
[1750639896054,0.34,101520.0,101510.0,0.1116]
[1750639896269,0.52718158,101520.0,101510.0,0.11282]
[1750639896481,1.24593726,101520.0,101500.0,0.06173861]
[1750639896700,1.24593726,101520.0,101500.0,0.11173861]
[1750639896701,0.36030158,101510.0,101500.0,0.11173861]
[1750639896921,0.41162158,101510.0,101500.0,0.06173861]
[1750639897998,0.41162158,101510.0,101500.0,0.06773861]
[1750639898442,0.40977715,101510.0,101500.0,0.03623861]
[1750639898652,0.34,101510.0,101500.0,0.19755565]
[1750639898862,0.05056,101530.0,101520.0,0.11282]
[1750639899066,0.40901385,101530.0,101520.0,0.11282]
[1750639899271,0.06901385,101530.0,101520.0,0.11282]
[1750639899493,5.056465,101540.0,101530.0,0.06552]
[1750639899725,0.57774158,101540.0,101530.0,0.0643]
[1750639899933,0.34,101530.0,101520.0,0.0313]
[1750639900143,0.70030158,101530.0,101520.0,0.0647]
[1750639900359,0.91774158,101530.0,101520.0,0.0627]
[1750639901236,0.71875648,101530.0,101510.0,0.1144]
[1750639901455,0.58281605,101530.0,101520.0,0.002]
[1750639902585,0.56436115,101530.0,101510.0,0.0644]
[1750639902806,0.36030158,101520.0,101510.0,0.0664]
[1750639903246,0.36030158,101520.0,101510.0,0.0644]
[1750639903658,0.36030158,101520.0,101510.0,0.06556]
[1750639903829,0.35774158,101520.0,101510.0,0.06556]
[1750639904062,0.35774158,101520.0,101510.0,0.06956]
[1750639905509,0.37619811,101520.0,101510.0,0.06956]
[1750639906994,0.37619808,101520.0,101510.0,0.06956]
[1750639907836,0.37619808,101520.0,101510.0,0.0684]
[1750639908056,0.37619808,101520.0,101510.0,0.004]
[1750639908299,0.37739808,101520.0,101510.0,0.004]
[1750639908530,0.71740039,101520.0,101510.0,0.004]
[1750639909159,0.71620039,101520.0,101510.0,0.004]
[1750639910524,0.71620039,101520.0,101510.0,0.0343]
[1750639910751,0.71620039,101520.0,101510.0,0.0645]
[1750639910973,0.71620039,101520.0,101510.0,0.06566]
[1750639911207,0.69774158,101520.0,101510.0,0.06566]
[1750639911456,0.71876169,101520.0,101510.0,0.06566]
[1750639912284,0.71876169,101520.0,101510.0,0.0645]
[1750639912907,0.35846011,101520.0,101510.0,0.0645]
[1750639913108,0.71876169,101520.0,101510.0,0.0645]
[1750639913537,0.37876169,101520.0,101510.0,0.0645]
[1750639913754,0.37876169,101520.0,101510.0,0.06566]
[1750639914174,0.37876447,101520.0,101510.0,0.06566]
[1750639914385,0.37876447,101520.0,101510.0,0.0645]
[1750639914592,0.37876447,101520.0,101510.0,0.0342]
[1750639914809,0.37876447,101520.0,101510.0,0.004]
[1750639915050,0.74719079,101520.0,101510.0,0.004]
[1750639915477,1.08719079,101520.0,101510.0,0.004]
[1750639916971,1.08719062,101520.0,101510.0,0.004]
[1750639917236,1.11701382,101520.0,101510.0,0.004]
[1750639917921,1.11701382,101520.0,101490.0,0.06769861]
[1750639918133,0.36030158,101500.0,101490.0,0.06769861]
[1750639919602,0.36030158,101500.0,101490.0,0.07169861]
[1750639919819,0.36030158,101500.0,101490.0,0.03266]
[1750639920071,0.36030158,101500.0,101490.0,0.06769861]
[1750639920277,0.73633174,101500.0,101490.0,0.0315]
[1750639920496,0.34,101490.0,101480.0,0.07249861]
[1750639920946,0.34,101490.0,101480.0,0.10449861]
[1750639922663,0.34,101490.0,101480.0,0.10949861]
[1750639924373,0.74009892,101500.0,101480.0,0.10949861]
[1750639924606,0.39826223,101500.0,101480.0,0.10949861]
[1750639924821,0.36030158,101490.0,101480.0,0.10949861]
[1750639925108,0.43035734,101500.0,101480.0,0.07729861]
[1750639925324,0.80911711,101500.0,101490.0,0.0306]
[1750639925569,0.39825553,101500.0,101490.0,0.03176]
[1750639925774,0.36043983,101520.0,101510.0,0.0306]
[1750639925989,0.37889446,101520.0,101510.0,0.0306]
[1750639926205,0.71889446,101520.0,101510.0,0.0306]
[1750639926419,0.35859288,101520.0,101510.0,0.06306]
[1750639926630,0.00013825,101520.0,101510.0,0.09809861]
[1750639926838,0.00213825,101520.0,101510.0,0.09809861]
[1750639927260,0.34213825,101520.0,101510.0,0.09809861]
[1750639927470,0.00213825,101520.0,101510.0,0.09809861]
[1750639928099,0.00213825,101520.0,101510.0,0.10815476]
[1750639928533,0.00013825,101520.0,101510.0,0.10815476]
[1750639928755,0.00013825,101520.0,101510.0,0.10915476]
[1750639928971,0.00013825,101520.0,101510.0,0.09909861]
[1750639931216,0.36043983,101520.0,101510.0,0.06406]
[1750639931426,0.36043983,101520.0,101510.0,0.06663861]
[1750639931653,0.00013825,101520.0,101510.0,0.06779861]
[1750639931883,0.00013825,101520.0,101510.0,0.10079861]
[1750639933272,0.00013825,101520.0,101510.0,0.11087847]
[1750639933755,0.13982565,101530.0,101520.0,0.0322]
[1750639933971,0.13982565,101530.0,101520.0,0.03333]
[1750639934182,0.43029854,101540.0,101520.0,0.03333]
[1750639934374,0.36030158,101530.0,101520.0,0.03333]
[1750639934833,0.36130158,101530.0,101520.0,0.03333]
[1750639935261,0.36030158,101530.0,101520.0,0.03333]
[1750639936174,0.36130158,101530.0,101520.0,0.03333]
[1750639937129,0.001,101530.0,101520.0,0.03333]
[1750639937355,0.36130158,101530.0,101520.0,0.03333]
[1750639938303,0.36130158,101530.0,101520.0,0.0322]
[1750639938550,0.36130158,101530.0,101520.0,0.03333]
[1750639941450,0.001,101530.0,101520.0,0.03333]
[1750639944158,0.36130158,101530.0,101520.0,0.03333]
[1750639946581,0.34,101520.0,101510.0,0.10236861]
[1750639948111,0.34,101520.0,101510.0,0.10336861]
[1750639949572,0.36030158,101520.0,101510.0,0.001]
[1750639949783,0.38810806,101520.0,101510.0,0.001]
[1750639949982,0.74959964,101520.0,101510.0,0.001]
[1750639950189,0.38929806,101520.0,101510.0,0.001]
[1750639950409,1.27658122,101520.0,101510.0,0.001]
[1750639950634,1.30718122,101520.0,101510.0,0.001]
[1750639951267,0.91508964,101520.0,101510.0,0.001]
[1750639951472,0.91627964,101520.0,101510.0,0.001]
[1750639952142,0.55597806,101520.0,101510.0,0.001]
[1750639952358,0.91627964,101520.0,101510.0,0.001]
[1750639952574,0.91627964,101520.0,101510.0,0.06946861]
[1750639952575,0.35842901,101520.0,101510.0,0.06946861]
[1750639952791,0.01842901,101520.0,101510.0,0.10246861]
[1750639953017,0.36030158,101530.0,101510.0,0.10246861]
[1750639953206,0.71874522,101530.0,101510.0,0.10246861]
[1750639953611,0.36030158,101520.0,101510.0,0.10246861]
[1750639953805,0.36030158,101520.0,101510.0,0.10146861]
[1750639954241,0.341,101530.0,101520.0,0.03503861]
[1750639954451,0.341,101530.0,101520.0,0.09916861]
[1750639954452,0.35844352,101530.0,101520.0,0.09916861]
[1750639954670,0.34,101530.0,101520.0,0.10908547]
[1750639954899,0.34,101530.0,101520.0,0.09916861]
[1750639955397,0.35847849,101530.0,101520.0,0.09916861]
[1750639955835,0.35947849,101530.0,101520.0,0.09916861]
[1750639956652,0.71978097,101530.0,101520.0,0.09916861]
[1750639956841,0.70130158,101530.0,101520.0,0.09916861]
[1750639957068,0.71978097,101530.0,101520.0,0.09916861]
[1750639957271,0.35947939,101530.0,101520.0,0.09916861]
[1750639958996,0.35947939,101530.0,101520.0,0.10908547]
[1750639959424,0.001,101530.0,101520.0,0.10908547]
[1750639959641,0.001,101530.0,101520.0,0.47184913]
[1750639959849,0.001,101530.0,101520.0,0.09916861]
[1750639960700,0.36130158,101530.0,101520.0,0.09916861]
[1750639960882,0.001,101530.0,101520.0,0.09916861]
[1750639961248,0.70030158,101540.0,101520.0,0.09916861]
[1750639961453,0.7580064,101540.0,101520.0,0.10316861]
[1750639962302,0.7580064,101540.0,101530.0,0.03503861]
[1750639963491,0.7592264,101540.0,101520.0,0.06633861]
[1750639963691,0.70030158,101530.0,101520.0,0.06749861]
[1750639964427,0.70030158,101530.0,101520.0,0.0303]
[1750639964640,0.70030158,101530.0,101520.0,0.06533861]
[1750639965176,0.71876284,101530.0,101520.0,0.06933861]
[1750639965376,0.71876284,101530.0,101520.0,0.03903861]
[1750639966260,0.71876284,101530.0,101520.0,0.004]
[1750639966703,0.71998284,101530.0,101520.0,0.004]
[1750639967152,0.35968126,101530.0,101520.0,0.004]
[1750639967358,0.71998284,101530.0,101520.0,0.004]
[1750639967989,0.71998404,101530.0,101520.0,0.004]
[1750639969475,0.88540404,101530.0,101520.0,0.004]
[1750639969686,0.88540224,101530.0,101520.0,0.004]
[1750639970107,0.88662224,101530.0,101520.0,0.004]
[1750639970740,0.88540417,101530.0,101520.0,0.004]
[1750639971356,0.88292417,101530.0,101520.0,0.004]
[1750639971796,0.52262259,101530.0,101520.0,0.004]
[1750639971999,0.35598259,101530.0,101520.0,0.004]
[1750639972626,0.35598259,101530.0,101520.0,0.10033861]
[1750639972842,0.35598259,101530.0,101520.0,0.10149861]
[1750639973050,0.33752,101530.0,101520.0,0.11153247]
[1750639973473,0.37924222,101540.0,101530.0,0.06633861]
[1750639973724,0.39770245,101540.0,101530.0,0.06749861]
[1750639973940,0.39770245,101540.0,101530.0,0.09749861]
[1750639974874,0.39770245,101540.0,101530.0,0.09949861]
[1750639975822,0.75800403,101540.0,101530.0,0.03703861]
[1750639976070,0.75922403,101540.0,101530.0,0.002]
[1750639977185,0.79142403,101540.0,101530.0,0.002]
[1750639977388,0.79834645,101540.0,101530.0,0.002]
[1750639978005,0.79834645,101540.0,101510.0,0.06503861]
[1750639978206,0.36030158,101530.0,101510.0,0.06619861]
[1750639978448,0.37876181,101530.0,101510.0,0.06619861]
[1750639978661,0.01846023,101530.0,101520.0,0.06849861]
[1750639979100,0.9564638,101540.0,101520.0,0.06849861]
[1750639979312,0.98184791,101540.0,101520.0,0.06849861]
[1750639979756,0.98306791,101540.0,101520.0,0.06849861]
[1750639980665,0.97614496,101540.0,101520.0,0.06849861]
[1750639980907,0.98306746,101540.0,101520.0,0.06849861]
[1750639981148,0.98306746,101540.0,101520.0,0.07871847]
[1750639981149,0.98184746,101540.0,101520.0,0.07871847]
[1750639981379,0.98184746,101540.0,101520.0,0.06849861]
[1750639981597,0.98306746,101540.0,101520.0,0.07049861]
[1750639981838,0.98306881,101540.0,101520.0,0.06849861]
[1750639982585,0.98184881,101540.0,101520.0,0.10089861]
[1750639982817,0.99108437,101540.0,101520.0,0.10089861]
[1750639983513,0.63078279,101540.0,101520.0,0.10089861]
[1750639983741,0.99108827,101540.0,101520.0,0.10089861]
[1750639984422,0.62870829,101530.0,101520.0,0.06849861]
[1750639984684,0.64717012,101530.0,101520.0,0.06849861]
[1750639984904,0.49058822,101530.0,101520.0,0.06849861]
[1750639985760,0.64717012,101530.0,101520.0,0.07049861]
[1750639986425,0.64717012,101530.0,101520.0,0.03546]
[1750639986637,0.64839012,101530.0,101520.0,0.002]
[1750639987091,0.64717012,101530.0,101520.0,0.06993861]
[1750639987313,0.64717012,101530.0,101520.0,0.10269861]
[1750639987314,0.35846183,101530.0,101520.0,0.10269861]
[1750639987737,0.34,101530.0,101520.0,0.10269861]
[1750639989575,0.4008049,101550.0,101520.0,0.06979861]
[1750639989887,0.34,101540.0,101530.0,0.03256]
[1750639990302,0.35847133,101540.0,101530.0,0.03256]
[1750639990700,0.35847133,101540.0,101530.0,0.06759861]
[1750639991352,0.3584754,101540.0,101530.0,0.06759861]
[1750639991987,0.3584754,101540.0,101530.0,0.09833861]
[1750639992220,0.3584754,101540.0,101530.0,0.09949861]
[1750639992878,0.35847354,101540.0,101530.0,0.09949861]
[1750639993087,0.35847354,101540.0,101530.0,0.06759861]
[1750639995185,0.35847354,101540.0,101530.0,0.06643861]
[1750639995397,0.71927844,101540.0,101530.0,0.06643861]
[1750639995829,0.71927844,101540.0,101530.0,0.06757861]
[1750639996049,0.71927844,101540.0,101530.0,0.06643861]
[1750639998612,0.35847047,101540.0,101530.0,0.06643861]
[1750639998828,0.71927537,101540.0,101530.0,0.06643861]
[1750640000042,0.35847047,101540.0,101530.0,0.09967861]
[1750640000275,0.35847047,101540.0,101530.0,0.06643861]
[1750640000522,0.35847047,101540.0,101510.0,0.0621]
[1750640000523,0.71927537,101540.0,101510.0,0.0621]
[1750640000758,0.7008049,101520.0,101510.0,0.06503861]
[1750640000992,0.72044537,101520.0,101510.0,0.03503861]
[1750640001488,0.72044491,101520.0,101500.0,0.06517686]
[1750640001703,0.72044491,101520.0,101500.0,0.06631686]
[1750640001916,0.72044491,101520.0,101510.0,0.004]
[1750640002559,0.34,101510.0,101500.0,0.03517686]
[1750640002791,0.35847001,101510.0,101500.0,0.06667686]
[1750640003003,0.35847001,101510.0,101500.0,0.10031686]
[1750640003946,0.34,101510.0,101500.0,0.10431686]
[1750640004186,0.50644,101530.0,101520.0,0.0328]
[1750640004413,0.3584594,101530.0,101520.0,0.0328]
[1750640005091,0.3584594,101530.0,101520.0,0.06783861]
[1750640006808,0.3584594,101530.0,101520.0,0.06897861]
[1750640008295,0.35845782,101530.0,101520.0,0.06897861]
[1750640008508,0.35845782,101530.0,101520.0,0.09927861]
[1750640009147,0.71926272,101530.0,101520.0,0.06783861]
[1750640010021,0.71926235,101530.0,101520.0,0.06783861]
[1750640010248,0.7008049,101530.0,101520.0,0.03503861]
[1750640010489,0.72043287,101530.0,101520.0,0.03503861]
[1750640010705,0.72043287,101530.0,101510.0,0.03503861]
[1750640010912,0.3608049,101520.0,101510.0,0.03503861]
[1750640011127,0.3608049,101520.0,101500.0,0.09767686]
[1750640011356,0.38043254,101520.0,101500.0,0.09881686]
[1750640012262,0.38043254,101520.0,101500.0,0.10081686]
[1750640012461,0.38043254,101520.0,101500.0,0.14072855]
[1750640012659,0.37926254,101520.0,101500.0,0.14072855]
[1750640013291,0.37926254,101520.0,101500.0,0.10081686]
[1750640015108,0.38043254,101520.0,101500.0,0.10081686]
[1750640015525,0.38042629,101520.0,101500.0,0.10081686]
[1750640015900,0.41045062,101520.0,101500.0,0.10081686]
[1750640016301,0.28878747,101510.0,101500.0,0.10081686]
[1750640016956,0.32078565,101510.0,101500.0,0.06937686]
[1750640017574,0.32078565,101510.0,101500.0,0.03517686]
[1750640017779,0.32078565,101510.0,101500.0,0.00413825]
[1750640017980,0.32195565,101510.0,101500.0,0.03917686]
[1750640018609,0.66195565,101510.0,101500.0,0.00413825]
[1750640018823,0.62995747,101510.0,101500.0,0.00413825]
[1750640019035,0.6484017,101510.0,101500.0,0.00413825]
[1750640020067,0.6484017,101510.0,101500.0,0.00013825]
[1750640020293,0.6484017,101510.0,101500.0,0.00213825]
[1750640021150,0.62995747,101510.0,101500.0,0.00213825]
[1750640023068,0.64840082,101510.0,101500.0,0.00213825]
[1750640023482,0.69828082,101510.0,101500.0,0.00213825]
[1750640023689,0.73078082,101510.0,101500.0,0.00213825]
[1750640024793,0.69828082,101510.0,101500.0,0.00213825]
[1750640026839,0.69827627,101510.0,101500.0,0.00213825]
[1750640027087,0.69710627,101510.0,101500.0,0.00213825]
[1750640027291,0.64722627,101510.0,101500.0,0.03403825]
[1750640027692,0.46007412,101510.0,101500.0,0.03403825]
[1750640027921,0.46007412,101510.0,101500.0,0.00213825]
[1750640028982,0.64723223,101510.0,101500.0,0.03513825]
[1750640029707,0.30723223,101510.0,101500.0,0.11112555]
[1750640029919,0.28878747,101510.0,101500.0,0.11112555]
[1750640030130,0.70830547,101520.0,101510.0,0.06714861]
[1750640030336,0.69712079,101520.0,101510.0,0.06714861]
[1750640031201,0.28878747,101530.0,101520.0,0.062]
[1750640031433,0.30723822,101530.0,101520.0,0.06321]
[1750640032085,0.01845075,101530.0,101520.0,0.09824861]
[1750640032304,0.30723822,101530.0,101520.0,0.09824861]
[1750640033145,0.002,101530.0,101520.0,0.09824861]
[1750640034271,0.002,101530.0,101520.0,0.38703608]
[1750640034480,0.34,101540.0,101530.0,0.0628]
[1750640034685,0.34,101540.0,101530.0,0.06401]
[1750640035773,0.34,101540.0,101530.0,0.07451486]
[1750640036195,0.34,101540.0,101530.0,0.10955347]
[1750640037240,0.34,101540.0,101530.0,0.09904861]
[1750640037665,0.34,101540.0,101530.0,0.10304861]
[1750640038179,0.34,101540.0,101530.0,0.10183861]
[1750640038377,0.62878747,101540.0,101530.0,0.07244861]
[1750640038712,0.62878747,101540.0,101530.0,0.07123861]
[1750640039156,0.79616747,101540.0,101530.0,0.004]
[1750640039684,0.62878747,101540.0,101530.0,0.004]
[1750640039931,0.62878747,101540.0,101530.0,0.03903861]
[1750640040153,0.34,101540.0,101530.0,0.07063861]
[1750640040378,0.62878747,101540.0,101530.0,0.07063861]
[1750640041309,0.62878747,101540.0,101530.0,0.03903861]
[1750640042248,0.62878747,101540.0,101530.0,0.004]
[1750640042465,0.36086464,101540.0,101530.0,0.03903861]
[1750640043136,0.36086464,101540.0,101530.0,0.004]
[1750640044309,0.70086464,101540.0,101530.0,0.004]
[1750640044539,0.70086464,101540.0,101530.0,0.03903861]
[1750640045455,0.70086464,101540.0,101530.0,0.004]
[1750640045655,0.70086464,101540.0,101530.0,0.03903861]
[1750640046825,0.70204464,101540.0,101530.0,0.03903861]
[1750640047056,0.70204464,101540.0,101530.0,0.004]
[1750640047568,0.70204464,101540.0,101530.0,0.03903861]
[1750640048031,0.34,101540.0,101530.0,0.03903861]
[1750640048251,0.70086464,101540.0,101530.0,0.07093861]
[1750640048713,0.70086464,101540.0,101530.0,0.03903861]
[1750640049196,0.70086464,101540.0,101530.0,0.07093861]
[1750640049410,0.70086464,101540.0,101530.0,0.10374861]
[1750640049899,0.70086464,101540.0,101530.0,0.07093861]
[1750640050175,0.74794413,101540.0,101530.0,0.004]
[1750640050448,0.70204464,101540.0,101530.0,0.004]
[1750640051310,0.72046621,101540.0,101530.0,0.004]
[1750640052130,0.71928621,101540.0,101530.0,0.004]
[1750640052551,0.72046621,101540.0,101530.0,0.004]
[1750640053581,0.75346621,101540.0,101530.0,0.004]
[1750640054735,0.72046621,101540.0,101530.0,0.004]
[1750640054943,0.72046621,101540.0,101530.0,0.0341]
[1750640054944,0.71928621,101540.0,101530.0,0.0341]
[1750640056081,0.71928621,101540.0,101530.0,0.0301]
[1750640056460,0.71928621,101540.0,101530.0,0.0321]
[1750640056676,0.34,101540.0,101530.0,0.10815047]
[1750640056913,0.34,101540.0,101530.0,0.10131861]
[1750640057123,0.07434911,101550.0,101540.0,0.10071861]
[1750640057352,0.41434911,101550.0,101540.0,0.10071861]
[1750640057572,0.77521375,101550.0,101540.0,0.0315]
[1750640057796,0.9608755,101550.0,101530.0,0.06893861]
[1750640058051,0.36086464,101540.0,101530.0,0.06893861]
[1750640058289,0.37930639,101540.0,101530.0,0.06893861]
[1750640058723,0.37930639,101540.0,101530.0,0.03703861]
[1750640059553,0.36086464,101540.0,101530.0,0.03703861]
[1750640059759,0.37932545,101540.0,101530.0,0.03703861]
[1750640060594,0.37932545,101540.0,101530.0,0.03503861]
[1750640060808,0.34,101530.0,101520.0,0.10013861]
[1750640061019,0.71932545,101530.0,101520.0,0.06693861]
[1750640062287,0.35846081,101530.0,101520.0,0.10311861]
[1750640063551,0.35848264,101530.0,101520.0,0.10311861]
[1750640065910,0.37934728,101530.0,101520.0,0.10311861]
[1750640066111,0.37934728,101530.0,101520.0,0.07211861]
[1750640066581,0.01848264,101530.0,101520.0,0.07211861]
[1750640066761,0.01848264,101530.0,101520.0,0.10501861]
[1750640068761,0.70086464,101540.0,101530.0,0.06503861]
[1750640068964,0.70086464,101540.0,101530.0,0.06621861]
[1750640069377,0.71935247,101540.0,101530.0,0.06621861]
[1750640070004,0.70086464,101540.0,101530.0,0.06621861]
[1750640070209,0.62866254,101540.0,101530.0,0.06621861]
[1750640070603,0.28866254,101540.0,101530.0,0.06503861]
[1750640070804,0.28866254,101540.0,101530.0,0.10743047]
[1750640071009,0.64714953,101540.0,101530.0,0.11043047]
[1750640071413,0.64714953,101540.0,101530.0,0.10011861]
[1750640071530,0.62866254,101540.0,101530.0,0.10011861]
[1750640071734,0.64714887,101540.0,101530.0,0.10011861]
[1750640071934,0.62866254,101540.0,101530.0,0.10011861]
[1750640072160,0.6471489,101540.0,101530.0,0.10011861]
[1750640073848,0.64714849,101540.0,101530.0,0.10011861]
[1750640075022,0.01848595,101540.0,101530.0,0.10011861]
[1750640075233,0.30714849,101540.0,101530.0,0.10011861]
[1750640075457,0.62866254,101540.0,101530.0,0.10011861]
[1750640075671,0.62866254,101540.0,101530.0,0.09893861]
[1750640075985,0.64714438,101540.0,101530.0,0.06803861]
[1750640076224,0.64836438,101540.0,101530.0,0.03803861]
[1750640077047,0.64836438,101540.0,101530.0,0.003]
[1750640077293,0.86376438,101540.0,101530.0,0.003]
[1750640077759,0.91033753,101540.0,101530.0,0.003]
[1750640078181,0.94113753,101540.0,101530.0,0.003]
[1750640078374,0.34122,101530.0,101510.0,0.06691861]
[1750640078621,0.28866254,101520.0,101510.0,0.06691861]
[1750640078849,0.30714438,101520.0,101510.0,0.06691861]
[1750640079727,0.30714438,101520.0,101510.0,0.09781861]
[1750640079728,0.28866254,101520.0,101510.0,0.09781861]
[1750640080575,0.28866254,101520.0,101510.0,0.10081861]
[1750640081007,0.28866254,101520.0,101510.0,0.09781861]
[1750640081217,0.28866254,101520.0,101510.0,0.10281861]
[1750640082296,0.28866254,101520.0,101510.0,0.07191861]
[1750640082745,0.28866254,101520.0,101510.0,0.005]
[1750640082746,0.57732508,101520.0,101510.0,0.005]
[1750640082966,1.10282273,101520.0,101510.0,0.005]
[1750640083186,1.00052273,101520.0,101510.0,0.005]
[1750640083411,0.91732508,101490.0,101480.0,0.07103861]
[1750640083661,0.62866254,101490.0,101480.0,0.07266075]
[1750640084370,0.70118202,101490.0,101480.0,0.07266075]
[1750640085027,0.70118202,101490.0,101480.0,0.07966075]
[1750640087981,0.70118202,101490.0,101480.0,0.07850075]
[1750640089045,0.70118202,101490.0,101480.0,0.01156214]
[1750640089913,0.78272202,101490.0,101480.0,0.01156214]
[1750640090331,0.81236902,101490.0,101480.0,0.01156214]
[1750640090539,0.78006902,101490.0,101480.0,0.01156214]
[1750640090751,0.75042202,101490.0,101480.0,0.00456214]
[1750640090962,0.75046202,101490.0,101480.0,0.00456214]
[1750640091191,0.75146202,101490.0,101480.0,0.00456214]
[1750640091454,0.75146202,101490.0,101480.0,0.03656214]
[1750640091660,0.39028,101490.0,101480.0,0.03656214]
[1750640091868,0.75146202,101490.0,101480.0,0.03656214]
[1750640092283,0.75146202,101490.0,101480.0,0.07160075]
[1750640092498,0.70218202,101490.0,101480.0,0.10296075]
[1750640094102,0.70218202,101490.0,101480.0,0.07160075]
[1750640095318,0.70218202,101490.0,101480.0,0.03960075]
[1750640095519,0.70338202,101490.0,101480.0,0.00456214]
[1750640096358,0.73408202,101490.0,101480.0,0.00456214]
[1750640097213,0.93214202,101490.0,101480.0,0.00456214]
[1750640097414,0.89984202,101490.0,101480.0,0.00456214]
[1750640098616,1.29422404,101490.0,101480.0,0.00456214]
[1750640098813,1.32246579,101490.0,101480.0,0.00456214]
[1750640099038,1.34217149,101490.0,101480.0,0.00456214]
[1750640099248,0.3412,101480.0,101470.0,0.0001]
[1750640099454,5.460565,101470.0,101460.0,0.0001]
[1750640099640,0.998715,101470.0,101460.0,0.0001]
[1750640100012,1.028368,101470.0,101460.0,0.0001]
[1750640100271,0.3712,101460.0,101450.0,0.0121132]
[1750640100441,0.76358202,101460.0,101450.0,0.0121132]
[1750640100960,0.80285687,101460.0,101450.0,0.0121132]
[1750640101337,0.80285687,101460.0,101450.0,0.0096332]
[1750640101536,5.8790326,101460.0,101450.0,0.0096332]
[1750640101743,5.85932187,101460.0,101450.0,0.0096332]
[1750640102342,5.83840627,101460.0,101450.0,0.0096332]
[1750640102545,0.77963904,101460.0,101450.0,0.0096332]
[1750640102768,0.99467904,101460.0,101450.0,0.0096332]
[1750640102979,0.96567904,101460.0,101450.0,0.0096332]
[1750640103612,0.75063904,101460.0,101450.0,0.0096332]
[1750640103818,0.96567904,101460.0,101450.0,0.0096332]
[1750640104070,0.74943904,101460.0,101450.0,0.0096332]
[1750640104274,0.94611979,101460.0,101450.0,0.10737181]
[1750640104702,0.73107979,101460.0,101450.0,0.10737181]
[1750640104905,0.94611979,101460.0,101450.0,0.10737181]